bitfinex/quotes_BTCUSD_20250607
["timestamp","ask_amount","ask_price","bid_price","bid_amount"]
[1749334407998,0.42052993,105870.0,105860.0,0.28644]
[1749334408195,0.3962083,105870.0,105860.0,0.28644]
[1749334408387,0.40284148,105870.0,105860.0,0.28644]
[1749334408591,0.42052996,105870.0,105860.0,0.28644]
[1749334409044,0.40284148,105870.0,105860.0,0.28644]
[1749334409248,0.42052996,105870.0,105860.0,0.28644]
[1749334409395,0.3962083,105870.0,105860.0,0.28644]
[1749334409594,0.41389678,105870.0,105860.0,0.28644]
[1749334409794,0.42052995,105870.0,105860.0,0.28644]
[1749334410294,0.40284147,105870.0,105860.0,0.28644]
[1749334410502,0.42052876,105870.0,105860.0,0.28644]
[1749334410701,0.42052832,105870.0,105860.0,0.28644]
[1749334412558,0.42052833,105870.0,105860.0,0.28644]
[1749334412761,0.40284104,105870.0,105860.0,0.28644]
[1749334412968,0.40284104,105870.0,105850.0,0.50140981]
[1749334412969,0.20782119,105860.0,105850.0,0.18894662]
[1749334413171,0.217267,105860.0,105850.0,0.49428101]
[1749334413381,0.23495835,105860.0,105850.0,0.49428101]
[1749334413786,0.23495835,105860.0,105850.0,0.50372798]
[1749334413990,0.23495219,105860.0,105850.0,0.50372798]
[1749334414233,0.23495218,105860.0,105850.0,0.50472798]
[1749334414431,0.217267,105860.0,105850.0,0.50472798]
[1749334414638,0.23495218,105860.0,105850.0,0.50472798]
[1749334414981,0.23495167,105860.0,105850.0,0.50572798]
[1749334415181,0.217267,105860.0,105850.0,0.50572798]
[1749334415394,0.23495167,105860.0,105850.0,0.50572798]
[1749334416131,0.23495397,105860.0,105850.0,0.50572798]
[1749334416334,0.217267,105860.0,105850.0,0.50572798]
[1749334416739,0.20782119,105860.0,105850.0,0.50572798]
[1749334416934,0.22550763,105860.0,105850.0,0.50572798]
[1749334417222,0.22550762,105860.0,105850.0,0.50572798]
[1749334417752,0.22550541,105860.0,105850.0,0.50572798]
[1749334418031,0.22550542,105860.0,105850.0,0.50572798]
[1749334418434,0.20782119,105860.0,105850.0,0.50572798]
[1749334418587,0.2255054,105860.0,105850.0,0.50572798]
[1749334419613,0.22550538,105860.0,105850.0,0.49628101]
[1749334419808,0.21605939,105860.0,105850.0,0.49628101]
[1749334420358,0.21605887,105860.0,105850.0,0.49628101]
[1749334420928,0.21605887,105860.0,105850.0,0.50572798]
[1749334421310,0.1983752,105860.0,105850.0,0.50572798]
[1749334421463,0.21605801,105860.0,105850.0,0.50572798]
[1749334421668,0.1983752,105860.0,105850.0,0.50572798]
[1749334421870,0.21605791,105860.0,105850.0,0.50572798]
[1749334422133,0.1983752,105860.0,105850.0,0.50572798]
[1749334422258,0.21605795,105860.0,105850.0,0.50572798]
[1749334422677,0.21605783,105860.0,105850.0,0.50572798]
[1749334423701,0.21605782,105860.0,105850.0,0.50572798]
[1749334424043,0.21605735,105860.0,105850.0,0.50572798]
[1749334424827,0.21605696,105860.0,105850.0,0.50572798]
[1749334425302,0.31266313,105860.0,105850.0,0.83220392]
[1749334425523,0.31266313,105860.0,105850.0,0.8416508]
[1749334425974,0.31266366,105860.0,105850.0,0.8416508]
[1749334426375,0.31266325,105860.0,105850.0,0.85109759]
[1749334426586,0.29498137,105860.0,105850.0,0.85109759]
[1749334426805,0.31266318,105860.0,105850.0,0.85109759]
[1749334427028,0.31266325,105860.0,105850.0,0.85109759]
[1749334427262,0.31266324,105860.0,105850.0,0.85109759]
[1749334427737,0.12373447,105860.0,105850.0,0.85109696]
[1749334427931,0.03657394,105860.0,105850.0,0.85109696]
[1749334428168,0.15207297,105860.0,105850.0,0.85109696]
[1749334428407,0.15207298,105860.0,105850.0,0.85109696]
[1749334428634,0.1343911,105860.0,105850.0,0.85109696]
[1749334429089,0.15207439,105860.0,105850.0,0.85109696]
[1749334429321,0.1343911,105860.0,105850.0,0.85109696]
[1749334429554,0.15207439,105860.0,105850.0,0.85109696]
[1749334429770,0.05546796,105860.0,105850.0,0.85109696]
[1749334429998,0.14262795,105860.0,105850.0,0.85109696]
[1749334430228,0.13318161,105860.0,105850.0,0.85109696]
[1749334430449,0.14262796,105860.0,105850.0,0.85109696]
[1749334431131,0.13318414,105860.0,105850.0,0.85109696]
[1749334431797,0.13318455,105860.0,105850.0,0.85109696]
[1749334432248,0.13318467,105860.0,105850.0,0.85109696]
[1749334432479,0.01768634,105860.0,105850.0,0.85109696]
[1749334432729,0.18198369,105870.0,105860.0,0.21726745]
[1749334432730,0.39259824,105870.0,105860.0,0.21726745]
[1749334433034,0.39259824,105870.0,105860.0,0.22671326]
[1749334433035,0.30572099,105870.0,105860.0,0.22671326]
[1749334433245,0.30853393,105870.0,105860.0,0.22671326]
[1749334433472,0.31797947,105870.0,105860.0,0.22671326]
[1749334433708,0.50689039,105870.0,105860.0,0.22671344]
[1749334433939,0.49020369,105870.0,105860.0,0.22671344]
[1749334434217,0.5145258,105870.0,105860.0,0.23615934]
[1749334434419,0.51452583,105870.0,105860.0,0.23615934]
[1749334434631,0.51452585,105870.0,105860.0,0.23615934]
[1749334434790,0.51452584,105870.0,105860.0,0.23615934]
[1749334435221,0.51452584,105870.0,105860.0,0.22671344]
[1749334435727,0.48075859,105870.0,105860.0,0.22671344]
[1749334435944,0.49844743,105870.0,105860.0,0.22671344]
[1749334436385,0.49844744,105870.0,105860.0,0.22671344]
[1749334436601,0.50508075,105870.0,105860.0,0.22671344]
[1749334437043,0.50507956,105870.0,105860.0,0.22671344]
[1749334437263,0.4873919,105870.0,105860.0,0.22671344]
[1749334437715,0.50507912,105870.0,105860.0,0.22671344]
[1749334438375,0.50507913,105870.0,105860.0,0.22671344]
[1749334438589,0.49563377,105870.0,105860.0,0.21726745]
[1749334438796,0.49563377,105870.0,105860.0,0.20782137]
[1749334439243,0.49563355,105870.0,105860.0,0.20782137]
[1749334439491,0.49563295,105870.0,105860.0,0.20782137]
[1749334439702,0.47131323,105870.0,105860.0,0.20782137]
[1749334439917,0.48900029,105870.0,105860.0,0.20782137]
[1749334440138,0.49563293,105870.0,105860.0,0.20782137]
[1749334440566,0.48618748,105870.0,105860.0,0.20782154]
[1749334440805,0.46850042,105870.0,105860.0,0.20782154]
[1749334441007,0.46186778,105870.0,105860.0,0.20782154]
[1749334441208,0.47955457,105870.0,105860.0,0.20782154]
[1749334441411,0.46850032,105870.0,105860.0,0.20782154]
[1749334441619,0.48618712,105870.0,105860.0,0.20782154]
[1749334441818,0.48618714,105870.0,105860.0,0.20782154]
[1749334442664,0.48618714,105870.0,105860.0,0.2172678]
[1749334443450,0.4767416,105870.0,105860.0,0.20782154]
[1749334443819,0.00944626,105860.0,105850.0,0.83020275]
[1749334444020,0.02713307,105860.0,105850.0,0.83020275]
[1749334444442,0.00944626,105860.0,105850.0,0.83020275]
[1749334444691,0.02713236,105860.0,105850.0,0.83020275]
[1749334444892,0.02713237,105860.0,105850.0,0.83020275]
[1749334445348,0.02713237,105860.0,105850.0,0.83120275]
[1749334445553,0.03657894,105860.0,105850.0,0.83220275]
[1749334445755,0.12373894,105860.0,105850.0,0.53752681]
[1749334446599,0.13318484,105860.0,105850.0,0.53752681]
[1749334446802,0.12494405,105860.0,105850.0,0.53752681]
[1749334447505,0.14262997,105860.0,105850.0,0.53752681]
[1749334448144,0.15207608,105860.0,105850.0,0.53752681]
[1749334448615,0.13438968,105860.0,105850.0,0.53752681]
[1749334448817,0.1520761,105860.0,105850.0,0.53752681]
[1749334448967,0.13439022,105860.0,105850.0,0.53752681]
[1749334449177,0.15207662,105860.0,105850.0,0.53752681]
[1749334450399,0.14263074,105860.0,105850.0,0.53752681]
[1749334450575,0.12494396,105860.0,105850.0,0.53752681]
[1749334450777,0.14263074,105860.0,105850.0,0.53752681]
[1749334452063,0.12494396,105860.0,105850.0,0.53752681]
[1749334452269,0.14263121,105860.0,105850.0,0.53752681]
[1749334452472,0.12494396,105860.0,105850.0,0.83220275]
[1749334452672,0.14263121,105860.0,105850.0,0.83220275]
[1749334453225,0.1426316,105860.0,105850.0,0.83220275]
[1749334453671,0.1426316,105860.0,105850.0,0.53752681]
[1749334454085,0.12494396,105860.0,105850.0,0.53752681]
[1749334454311,0.14263169,105860.0,105850.0,0.53752681]
[1749334454464,0.1426317,105860.0,105850.0,0.53752681]
[1749334455497,0.12494396,105860.0,105850.0,0.53752681]
[1749334455838,0.14263204,105860.0,105850.0,0.53752681]
[1749334456038,0.14263315,105860.0,105850.0,0.53752681]
[1749334456503,0.13318699,105860.0,105850.0,0.53752681]
[1749334457004,0.13318733,105860.0,105850.0,0.53752681]
[1749334457567,0.13318691,105860.0,105850.0,0.53752681]
[1749334457779,0.1331869,105860.0,105850.0,0.53752681]
[1749334458179,0.1331875,105860.0,105850.0,0.53752681]
[1749334458770,0.13318911,105860.0,105850.0,0.53752681]
[1749334458967,0.13318906,105860.0,105850.0,0.53752681]
[1749334459168,0.11549779,105860.0,105850.0,0.53752681]
[1749334459391,0.13318911,105860.0,105850.0,0.53752681]
[1749334459722,0.11549779,105860.0,105850.0,0.53752681]
[1749334459903,0.13318911,105860.0,105850.0,0.53752681]
[1749334460934,0.1331893,105860.0,105850.0,0.53752681]
[1749334461137,0.14263546,105860.0,105850.0,0.53752681]
[1749334461362,0.13318929,105860.0,105850.0,0.53752681]
[1749334461746,0.133192,105860.0,105850.0,0.53752681]
[1749334462813,0.13319207,105860.0,105850.0,0.53752681]
[1749334463482,0.13319208,105860.0,105850.0,0.53752681]
[1749334464396,0.12374629,105860.0,105850.0,0.53752681]
[1749334464819,0.12374629,105860.0,105850.0,0.83220275]
[1749334465025,0.12374633,105860.0,105850.0,0.83220275]
[1749334465228,0.12374636,105860.0,105850.0,0.83220275]
[1749334465458,0.10605171,105860.0,105850.0,0.83220275]
[1749334465855,0.12374637,105860.0,105850.0,0.83220275]
[1749334466853,0.10605171,105860.0,105850.0,0.83220275]
[1749334467058,0.12374606,105860.0,105850.0,0.83220275]
[1749334467286,0.12374607,105860.0,105850.0,0.83220275]
[1749334467455,0.12374604,105860.0,105850.0,0.83220275]
[1749334468673,0.12374578,105860.0,105850.0,0.83220275]
[1749334468871,0.10605171,105860.0,105850.0,0.83220275]
[1749334469078,0.12374578,105860.0,105850.0,0.83220275]
[1749334469499,0.11429988,105860.0,105850.0,0.83220275]
[1749334469673,0.11429979,105860.0,105850.0,0.83220275]
[1749334470119,0.10485407,105860.0,105850.0,0.83220275]
[1749334470326,0.09660572,105860.0,105850.0,0.83220275]
[1749334470491,0.11429942,105860.0,105850.0,0.83220275]
[1749334470684,0.11429945,105860.0,105850.0,0.83220275]
[1749334471561,0.10485373,105860.0,105850.0,0.83220275]
[1749334471761,0.11429945,105860.0,105850.0,0.83220275]
[1749334471963,0.11429908,105860.0,105850.0,0.83220275]
[1749334472376,0.09660572,105860.0,105850.0,0.83220275]
[1749334472983,0.11429907,105860.0,105850.0,0.83220275]
[1749334473391,0.12374488,105860.0,105850.0,0.83220275]
[1749334473967,0.12374455,105860.0,105850.0,0.83220275]
[1749334474374,0.11429874,105860.0,105850.0,0.83220275]
[1749334474570,0.09660572,105860.0,105850.0,0.83220275]
[1749334474775,0.11429874,105860.0,105850.0,0.83220275]
[1749334475174,0.12374464,105860.0,105850.0,0.83220275]
[1749334475731,0.12374442,105860.0,105850.0,0.83220275]
[1749334476079,0.10605162,105860.0,105850.0,0.83220275]
[1749334476328,0.12374442,105860.0,105850.0,0.83220275]
[1749334477550,0.10605162,105860.0,105850.0,0.83220275]
[1749334477748,0.10605162,105860.0,105850.0,0.53752681]
[1749334477964,0.12374431,105860.0,105850.0,0.53752681]
[1749334479032,0.12374429,105860.0,105850.0,0.53752681]
[1749334479508,0.10605162,105860.0,105850.0,0.53752681]
[1749334479808,0.12374429,105860.0,105850.0,0.53752681]
[1749334480019,0.12374428,105860.0,105850.0,0.53752681]
[1749334480740,0.12374428,105860.0,105850.0,0.83220275]
[1749334481175,0.12374428,105860.0,105850.0,0.53752681]
[1749334481625,0.10605162,105860.0,105850.0,0.53752681]
[1749334481816,0.12374429,105860.0,105850.0,0.53752681]
[1749334482017,0.12374431,105860.0,105850.0,0.53752681]
[1749334483187,0.10605162,105860.0,105850.0,0.53752681]
[1749334483441,0.12374444,105860.0,105850.0,0.53752681]
[1749334483823,0.12374445,105860.0,105850.0,0.53752681]
[1749334485150,0.10605162,105860.0,105850.0,0.53752681]
[1749334485300,0.12374468,105860.0,105850.0,0.53752681]
[1749334486662,0.1237449,105860.0,105850.0,0.53752681]
[1749334487012,0.10605162,105860.0,105850.0,0.53752681]
[1749334487554,0.12374489,105860.0,105850.0,0.53752681]
[1749334487763,0.10605162,105860.0,105850.0,0.53752681]
[1749334487987,0.12374489,105860.0,105850.0,0.52162681]
[1749334488368,0.12374537,105860.0,105850.0,0.52162681]
[1749334488781,0.10605162,105860.0,105850.0,0.52162681]
[1749334488947,0.12374537,105860.0,105850.0,0.52162681]
[1749334490373,0.10605162,105860.0,105850.0,0.52162681]
[1749334490584,0.12374591,105860.0,105850.0,0.52162681]
[1749334490787,0.11430001,105860.0,105850.0,0.52162681]
[1749334490983,0.10605162,105860.0,105850.0,0.52162681]
[1749334491178,0.10485433,105860.0,105850.0,0.53812681]
[1749334491388,0.11429996,105860.0,105850.0,0.53812681]
[1749334491910,0.11430007,105860.0,105850.0,0.53812681]
[1749334492119,0.12374588,105860.0,105850.0,0.53812681]
[1749334492331,0.12374682,105860.0,105850.0,0.53812681]
[1749334492752,0.10605144,105860.0,105850.0,0.52162681]
[1749334492957,0.12374681,105860.0,105850.0,0.52162681]
[1749334493163,0.1237468,105860.0,105850.0,0.52162681]
[1749334493582,0.1237468,105860.0,105850.0,0.50572681]
[1749334493786,0.13319279,105860.0,105850.0,0.50572681]
[1749334494252,0.13319524,105860.0,105850.0,0.50572681]
[1749334494681,0.11549734,105860.0,105850.0,0.50572681]
[1749334495128,0.13319515,105860.0,105850.0,0.50572681]
[1749334496258,0.13319516,105860.0,105850.0,0.50572681]
[1749334496484,0.14264124,105860.0,105850.0,0.50572681]
[1749334496684,0.14264125,105860.0,105850.0,0.50572681]
[1749334497457,0.14264033,105860.0,105850.0,0.50572681]
[1749334497894,0.14264024,105860.0,105850.0,0.50572681]
[1749334498259,0.14264024,105860.0,105850.0,0.50562521]
[1749334498660,0.15208632,105860.0,105850.0,0.50562521]
[1749334498944,0.15208632,105860.0,105850.0,0.48562521]
[1749334499172,0.15208686,105860.0,105850.0,0.48562521]
[1749334499390,0.14264069,105860.0,105850.0,0.48562521]
[1749334499607,0.13319283,105860.0,105850.0,0.48562521]
[1749334499817,0.13319273,105860.0,105850.0,0.48562521]
[1749334500207,0.1426389,105860.0,105850.0,0.48562521]
[1749334500411,0.12374674,105860.0,105850.0,0.48562521]
[1749334500613,0.11430084,105860.0,105850.0,0.48562521]
[1749334500993,0.12374612,105860.0,105850.0,0.78030115]
[1749334501197,0.09660581,105860.0,105850.0,0.78030115]
[1749334501381,0.11430013,105860.0,105850.0,0.78030115]
[1749334501611,0.09660581,105860.0,105850.0,0.78030115]
[1749334501814,0.08716,105860.0,105850.0,0.78030115]
[1749334502036,0.12374586,105860.0,105850.0,0.79650115]
[1749334502237,0.12374577,105860.0,105850.0,0.79650115]
[1749334502435,0.13319167,105860.0,105850.0,0.79650115]
[1749334503072,0.11549743,105860.0,105850.0,0.79650115]
[1749334503431,0.13319157,105860.0,105850.0,0.79650115]
[1749334504539,0.11549743,105860.0,105850.0,0.78030115]
[1749334504963,0.1331912,105860.0,105850.0,0.78030115]
[1749334505166,0.1331911,105860.0,105850.0,0.78030115]
[1749334505368,0.11549743,105860.0,105850.0,0.78030115]
[1749334505574,0.13319109,105860.0,105850.0,0.78030115]
[1749334506903,0.13319089,105860.0,105850.0,0.78030115]
[1749334507180,0.13319078,105860.0,105850.0,0.48562521]
[1749334507433,0.11429907,105860.0,105850.0,0.48562521]
[1749334507675,0.12374488,105860.0,105850.0,0.48562521]
[1749334508939,0.12374476,105860.0,105850.0,0.48562521]
[1749334509088,0.10605153,105860.0,105850.0,0.48562521]
[1749334509312,0.12374473,105860.0,105850.0,0.48562521]
[1749334509905,0.13319063,105860.0,105850.0,0.48562521]
[1749334510309,0.13319065,105860.0,105850.0,0.48562521]
[1749334510718,0.13319061,105860.0,105850.0,0.48562521]
[1749334510917,0.11549743,105860.0,105850.0,0.48562521]
[1749334511125,0.1331906,105860.0,105850.0,0.48562521]
[1749334511758,0.13319061,105860.0,105850.0,0.48562521]
[1749334513093,0.11549743,105860.0,105850.0,0.48562521]
[1749334513268,0.13319062,105860.0,105850.0,0.48562521]
[1749334514132,0.13319066,105860.0,105850.0,0.48562521]
[1749334514376,0.11549743,105860.0,105850.0,0.48562521]
[1749334514798,0.13319079,105860.0,105850.0,0.48562521]
[1749334515702,0.13319088,105860.0,105850.0,0.48562521]
[1749334517868,0.11549743,105860.0,105850.0,0.48562521]
[1749334518094,0.10605153,105860.0,105850.0,0.48562521]
[1749334518449,0.12374518,105860.0,105850.0,0.48562521]
[1749334519271,0.1331913,105860.0,105850.0,0.48562521]
[1749334519474,0.13319129,105860.0,105850.0,0.48562521]
[1749334519770,0.1331912,105860.0,105850.0,0.48562521]
[1749334519975,0.13319119,105860.0,105850.0,0.48562521]
[1749334521202,0.12374529,105860.0,105850.0,0.48562521]
[1749334521404,0.10605153,105860.0,105850.0,0.48562521]
[1749334521610,0.12374575,105860.0,105850.0,0.48562521]
[1749334521862,0.10605153,105860.0,105850.0,0.48562521]
[1749334522162,0.12374575,105860.0,105850.0,0.48562521]
[1749334522570,0.10605153,105860.0,105850.0,0.48562521]
[1749334522777,0.12374584,105860.0,105850.0,0.48562521]
[1749334523006,0.12374588,105860.0,105850.0,0.48562521]
[1749334523430,0.10605153,105860.0,105850.0,0.48562521]
[1749334523630,0.12374656,105860.0,105850.0,0.48562521]
[1749334524514,0.12374666,105860.0,105850.0,0.48562521]
[1749334524926,0.10605153,105860.0,105850.0,0.48562521]
[1749334525367,0.12374802,105860.0,105850.0,0.48562521]
[1749334526357,0.12374803,105860.0,105850.0,0.48562521]
[1749334527007,0.12374809,105860.0,105850.0,0.48562521]
[1749334527318,0.12374914,105860.0,105850.0,0.48562521]
[1749334528498,0.10605153,105860.0,105850.0,0.48562521]
[1749334528779,0.12374914,105860.0,105850.0,0.48562521]
[1749334528920,0.10605153,105860.0,105850.0,0.48562521]
[1749334529116,0.12374922,105860.0,105850.0,0.48562521]
[1749334530157,0.12374923,105860.0,105850.0,0.48562521]
[1749334530331,0.12374923,105860.0,105850.0,0.48537521]
[1749334530758,0.10605153,105860.0,105850.0,0.48537521]
[1749334530941,0.12374932,105860.0,105850.0,0.48537521]
[1749334531527,0.10605153,105860.0,105850.0,0.48537521]
[1749334531844,0.1237493,105860.0,105850.0,0.48537521]
[1749334532222,0.10605153,105860.0,105850.0,0.48537521]
[1749334532414,0.12374931,105860.0,105850.0,0.48537521]
[1749334532731,0.1237493,105860.0,105850.0,0.48537521]
[1749334532933,0.12374932,105860.0,105850.0,0.48537521]
[1749334533583,0.13319531,105860.0,105850.0,0.48537521]
[1749334533899,0.09660572,105860.0,105850.0,0.48537521]
[1749334534129,0.10605162,105860.0,105850.0,0.48537521]
[1749334534360,0.12374961,105860.0,105850.0,0.48537521]
[1749334535327,0.12374869,105860.0,105850.0,0.48537521]
[1749334535850,0.11430279,105860.0,105850.0,0.48537521]
[1749334536075,0.12374869,105860.0,105850.0,0.48537521]
[1749334536214,0.12374857,105860.0,105850.0,0.48537521]
[1749334536396,0.12374856,105860.0,105850.0,0.48537521]
[1749334537818,0.10605153,105860.0,105850.0,0.48537521]
[1749334538098,0.12374858,105860.0,105850.0,0.48537521]
[1749334539441,0.12374822,105860.0,105850.0,0.48537521]
[1749334539653,0.09660572,105860.0,105850.0,0.48537521]
[1749334539858,0.10485669,105860.0,105850.0,0.48537521]
[1749334540118,0.1143025,105860.0,105850.0,0.48537521]
[1749334541380,0.11430241,105860.0,105850.0,0.48537521]
[1749334541615,0.11430212,105860.0,105850.0,0.48537521]
[1749334542974,0.09660572,105860.0,105850.0,0.48537521]
[1749334543535,0.11430194,105860.0,105850.0,0.48537521]
[1749334545221,0.09660572,105860.0,105850.0,0.48537521]
[1749334545619,0.11430185,105860.0,105850.0,0.48537521]
[1749334545871,0.12374766,105860.0,105850.0,0.48537521]
[1749334546656,0.12374761,105860.0,105850.0,0.48537521]
[1749334546866,0.10605153,105860.0,105850.0,0.48537521]
[1749334547080,0.12374759,105860.0,105850.0,0.48537521]
[1749334547295,0.12374761,105860.0,105850.0,0.48537521]
[1749334548388,0.13319353,105860.0,105850.0,0.48537521]
[1749334548588,0.11549743,105860.0,105850.0,0.48537521]
[1749334548760,0.13319351,105860.0,105850.0,0.48537521]
[1749334549353,0.13319352,105860.0,105850.0,0.48537521]
[1749334550222,0.12374762,105860.0,105850.0,0.48537521]
[1749334550899,0.10605153,105860.0,105850.0,0.48537521]
[1749334551108,0.12374762,105860.0,105850.0,0.48537521]
[1749334551952,0.12374766,105860.0,105850.0,0.48537521]
[1749334552133,0.12374768,105860.0,105850.0,0.48537521]
[1749334552740,0.13319367,105860.0,105850.0,0.48537521]
[1749334553163,0.12374768,105860.0,105850.0,0.48537521]
[1749334553609,0.13319367,105860.0,105850.0,0.48537521]
[1749334553841,0.13319367,105860.0,105850.0,0.46537521]
[1749334554082,0.13319371,105860.0,105850.0,0.46537521]
[1749334554460,0.13319376,105860.0,105850.0,0.46537521]
[1749334554725,0.13319376,105860.0,105850.0,0.45592869]
[1749334554923,0.14263999,105860.0,105850.0,0.45592869]
[1749334555138,0.11549752,105860.0,105850.0,0.45592869]
[1749334555312,0.14263999,105860.0,105850.0,0.45592869]
[1749334556145,0.12494369,105860.0,105850.0,0.45592869]
[1749334556321,0.14263998,105860.0,105850.0,0.45592869]
[1749334556522,0.14263997,105860.0,105850.0,0.45592869]
[1749334556732,0.14264005,105860.0,105850.0,0.45592869]
[1749334556899,0.14264004,105860.0,105850.0,0.45592869]
[1749334557100,0.13319387,105860.0,105850.0,0.45592869]
[1749334557533,0.14263995,105860.0,105850.0,0.45592869]
[1749334557925,0.15208621,105860.0,105850.0,0.45592869]
[1749334558095,0.13438986,105860.0,105850.0,0.45592869]
[1749334558304,0.14264004,105860.0,105850.0,0.45592869]
[1749334558516,0.1249436,105860.0,105850.0,0.45592869]
[1749334558717,0.14264004,105860.0,105850.0,0.45592869]
[1749334559176,0.14264004,105860.0,105850.0,0.19094662]
[1749334559177,0.34101507,105860.0,105850.0,0.19094662]
[1749334559436,0.35051371,105860.0,105850.0,0.002]
[1749334559653,0.35051348,105860.0,105850.0,0.48655386]
[1749334559854,0.35051267,105860.0,105850.0,0.49600101]
[1749334559970,0.32618111,105860.0,105850.0,0.49600101]
[1749334560176,0.34387673,105860.0,105850.0,0.49600101]
[1749334560430,0.35051252,105860.0,105850.0,0.49600101]
[1749334561384,0.3505126,105860.0,105850.0,0.49600101]
[1749334561588,0.32618111,105860.0,105850.0,0.49600101]
[1749334561847,0.3438685,105860.0,105850.0,0.49600101]
[1749334562001,0.35050127,105860.0,105850.0,0.49600101]
[1749334562199,0.33281388,105860.0,105850.0,0.49600101]
[1749334562403,0.3938685,105860.0,105850.0,0.49600101]
[1749334562603,0.40050127,105860.0,105850.0,0.49600101]
[1749334562954,0.37618111,105860.0,105850.0,0.49600101]
[1749334563160,0.40050127,105860.0,105850.0,0.50544807]
[1749334563371,0.40050093,105860.0,105850.0,0.50544807]
[1749334563735,0.40050093,105860.0,105850.0,0.49600101]
[1749334563938,0.39105485,105860.0,105850.0,0.49600101]
[1749334564341,0.39105357,105860.0,105850.0,0.49600101]
[1749334564792,0.36673503,105860.0,105850.0,0.49600101]
[1749334565091,0.37336651,105860.0,105850.0,0.49600101]
[1749334565299,0.39105048,105860.0,105850.0,0.49600101]
[1749334565512,0.39104988,105860.0,105850.0,0.49600101]
[1749334566425,0.38441681,105860.0,105850.0,0.49600101]
[1749334566632,0.38441682,105860.0,105850.0,0.49600101]
[1749334566825,0.38441681,105860.0,105850.0,0.49600101]
[1749334567030,0.39104747,105860.0,105850.0,0.50544807]
[1749334568062,0.37336569,105860.0,105850.0,0.50544807]
[1749334568237,0.39104749,105860.0,105850.0,0.50544807]
[1749334568585,0.39104599,105860.0,105850.0,0.51489504]
[1749334568802,0.38441537,105860.0,105850.0,0.51489504]
[1749334568998,0.3910455,105860.0,105850.0,0.51489504]
[1749334569893,0.39104549,105860.0,105850.0,0.51489504]
[1749334570092,0.39104496,105860.0,105850.0,0.51489504]
[1749334570299,0.39104444,105860.0,105850.0,0.51489504]
[1749334570499,0.38441446,105860.0,105850.0,0.51489504]
[1749334570746,0.39104424,105860.0,105850.0,0.51489504]
[1749334571130,0.37336481,105860.0,105850.0,0.51489504]
[1749334571349,0.39104424,105860.0,105850.0,0.51489504]
[1749334571712,0.39104368,105860.0,105850.0,0.51489504]
[1749334571915,0.39104363,105860.0,105850.0,0.51489504]
[1749334572317,0.39104354,105860.0,105850.0,0.51489504]
[1749334572878,0.39104354,105860.0,105850.0,0.50544807]
[1749334573080,0.3815971,105860.0,105850.0,0.20039386]
[1749334573233,0.38159644,105860.0,105850.0,0.48651386]
[1749334573443,0.38159641,105860.0,105850.0,0.49596101]
[1749334573623,0.37496706,105860.0,105850.0,0.49596101]
[1749334573801,0.38159634,105860.0,105850.0,0.49596101]
[1749334574008,0.38159635,105860.0,105850.0,0.49596101]
[1749334574518,0.38159633,105860.0,105850.0,0.49596101]
[1749334574752,0.38159632,105860.0,105850.0,0.49596101]
[1749334575292,0.37496699,105860.0,105850.0,0.49596101]
[1749334575487,0.36391813,105860.0,105850.0,0.49596101]
[1749334575860,0.38159643,105860.0,105850.0,0.49596101]
[1749334576204,0.38159638,105860.0,105850.0,0.49596101]
[1749334576405,0.38159644,105860.0,105850.0,0.49596101]
[1749334576576,0.35043644,105860.0,105850.0,0.49596101]
[1749334576763,0.34380721,105860.0,105850.0,0.49596101]
[1749334576959,0.35043664,105860.0,105850.0,0.49596101]
[1749334577365,0.36365819,105860.0,105850.0,0.49596101]
[1749334577570,0.38133666,105860.0,105850.0,0.49596101]
[1749334578315,0.37470724,105860.0,105850.0,0.49596101]
[1749334578566,0.3813369,105860.0,105850.0,0.49596101]
[1749334578801,0.3636584,105860.0,105850.0,0.47706662]
[1749334578976,0.38133744,105860.0,105850.0,0.49596119]
[1749334579415,0.38133744,105860.0,105850.0,0.50540834]
[1749334579627,0.36365842,105860.0,105850.0,0.50540834]
[1749334579828,0.38133751,105860.0,105850.0,0.50540834]
[1749334580101,0.35043751,105860.0,105850.0,0.50540834]
[1749334580311,0.33275854,105860.0,105850.0,0.50540834]
[1749334580530,0.34380817,105860.0,105850.0,0.50540834]
[1749334580735,0.35043794,105860.0,105850.0,0.50540834]
[1749334581636,0.35043823,105860.0,105850.0,0.50540834]
[1749334582042,0.35043822,105860.0,105850.0,0.50540834]
[1749334582413,0.38093952,105860.0,105850.0,0.50540834]
[1749334582983,0.38093952,105860.0,105850.0,0.49596119]
[1749334583339,0.3809412,105860.0,105850.0,0.50540834]
[1749334584478,0.38094134,105860.0,105850.0,0.50540834]
[1749334584712,0.38094205,105860.0,105850.0,0.50540834]
[1749334584890,0.35931054,105860.0,105850.0,0.50540834]
[1749334585092,0.47734153,105860.0,105850.0,0.002]
[1749334585296,0.47734155,105860.0,105850.0,0.28812]
[1749334586260,0.47734152,105860.0,105850.0,0.28812]
[1749334586748,0.47734411,105860.0,105850.0,0.28812]
[1749334586954,0.47734411,105860.0,105850.0,0.29756733]
[1749334587861,0.45302825,105860.0,105850.0,0.29756733]
[1749334588098,0.47071553,105860.0,105850.0,0.29756733]
[1749334588312,0.47734825,105860.0,105850.0,0.29756733]
[1749334588749,0.47734825,105860.0,105850.0,0.4959611]
[1749334589177,0.47734832,105860.0,105850.0,0.4959611]
[1749334589403,0.47735095,105860.0,105850.0,0.48651395]
[1749334589621,0.45966363,105860.0,105850.0,0.48651395]
[1749334589875,0.47072253,105860.0,105850.0,0.48651395]
[1749334590095,0.47735788,105860.0,105850.0,0.49596119]
[1749334590554,0.44685788,105860.0,105850.0,0.49596119]
[1749334590773,0.44685788,105860.0,105850.0,0.50540834]
[1749334590993,0.4468579,105860.0,105850.0,0.50540834]
[1749334591463,0.42916361,105860.0,105850.0,0.50540834]
[1749334591670,0.44685779,105860.0,105850.0,0.50540834]
[1749334592448,0.44685751,105860.0,105850.0,0.50540834]
[1749334592665,0.44022226,105860.0,105850.0,0.50540834]
[1749334592871,0.4291635,105860.0,105850.0,0.50540834]
[1749334593292,0.46255751,105860.0,105850.0,0.50540834]
[1749334594402,0.45592201,105860.0,105850.0,0.21928834]
[1749334594618,0.43822825,105860.0,105850.0,0.50536834]
[1749334594832,0.46255717,105860.0,105850.0,0.50536834]
[1749334595033,0.46255718,105860.0,105850.0,0.50536834]
[1749334595875,0.45592203,105860.0,105850.0,0.50536834]
[1749334596071,0.45592202,105860.0,105850.0,0.50536834]
[1749334596278,0.46255706,105860.0,105850.0,0.50536834]
[1749334596488,0.46255702,105860.0,105850.0,0.21928834]
[1749334596740,0.44685702,105860.0,105850.0,0.50536834]
[1749334597710,0.4402219,105860.0,105850.0,0.50536834]
[1749334597912,0.47785702,105860.0,105850.0,0.50536834]
[1749334598328,0.47785696,105860.0,105850.0,0.50536834]
[1749334599232,0.47785693,105860.0,105850.0,0.50536834]
[1749334599560,0.47785695,105860.0,105850.0,0.50536834]
[1749334599741,0.47122185,105860.0,105850.0,0.50536834]
[1749334599891,0.47122184,105860.0,105850.0,0.50536834]
[1749334600112,0.46016334,105860.0,105850.0,0.50536834]
[1749334600482,0.44685692,105860.0,105850.0,0.50536834]
[1749334600891,0.44685692,105860.0,105850.0,0.5148154]